[Event "*** Titled Tuesday 3|2 Blitz"]
[Site "Chess.com"]
[Date "2016.06.07"]
[Round "8"]
[White "Philofive"]
[Black "biostatistician"]
[Result "0-1"]
[WhiteElo "2330"]
[BlackElo "2305"]
[TimeControl "180+2"]
[EndTime "12:40:12 PDT"]
[Termination "biostatistician won by resignation"]

1. d4 {[%clk 0:03:01.9]} 1... Nf6 {[%clk 0:03:00.7]} 2. Bg5 {[%clk 0:03:01.6]}
2... Ne4 {[%clk 0:02:59.3]} 3. Bf4 {[%clk 0:03:01.6]} 3... d5 {[%clk 0:03:00.1]}
4. e3 {[%clk 0:03:01]} 4... Bf5 {[%clk 0:02:59.8]} 5. Bd3 {[%clk 0:03:00.1]}
5... e6 {[%clk 0:02:59.7]} 6. Ne2 {[%clk 0:02:58.6]} 6... Bd6 {[%clk 0:02:59.3]}
7. O-O {[%clk 0:02:56.2]} 7... O-O {[%clk 0:02:59.2]} 8. Nd2 {[%clk 0:02:52.3]}
8... Nxd2 {[%clk 0:02:58.2]} 9. Qxd2 {[%clk 0:02:52.7]} 9... Bxd3 {[%clk
0:02:59.3]} 10. Qxd3 {[%clk 0:02:53.8]} 10... Nc6 {[%clk 0:03:00.4]} 11. Bxd6
{[%clk 0:02:44.9]} 11... Qxd6 {[%clk 0:03:02.3]} 12. Rfd1 {[%clk 0:02:44.1]}
12... Nb4 {[%clk 0:03:01.9]} 13. Qb3 {[%clk 0:02:42.5]} 13... b6 {[%clk
0:02:57.5]} 14. Nf4 {[%clk 0:02:30.3]} 14... c5 {[%clk 0:02:49.7]} 15. dxc5
{[%clk 0:02:25.7]} 15... Qxc5 {[%clk 0:02:48.1]} 16. c3 {[%clk 0:01:57.3]} 16...
Nc6 {[%clk 0:02:48.3]} 17. Rac1 {[%clk 0:01:54.3]} 17... Rfd8 {[%clk 0:02:47.5]}
18. Nd3 {[%clk 0:01:48.2]} 18... Qc4 {[%clk 0:02:36.2]} 19. Qxc4 {[%clk
0:01:44.8]} 19... dxc4 {[%clk 0:02:38.1]} 20. Ne1 {[%clk 0:01:44.7]} 20... b5
{[%clk 0:02:37]} 21. Kf1 {[%clk 0:01:42.3]} 21... e5 {[%clk 0:02:37.2]} 22. e4
{[%clk 0:01:37.2]} 22... g6 {[%clk 0:02:34]} 23. Nc2 {[%clk 0:01:37.7]} 23...
Kg7 {[%clk 0:02:33.2]} 24. Ke2 {[%clk 0:01:33.6]} 24... f5 {[%clk 0:02:33.8]}
25. f3 {[%clk 0:01:33.9]} 25... f4 {[%clk 0:02:32.6]} 26. g4 {[%clk 0:01:12.9]}
26... Kf6 {[%clk 0:02:20.7]} 27. h4 {[%clk 0:01:13.5]} 27... Ke6 {[%clk
0:02:18.9]} 28. Na3 {[%clk 0:01:09.1]} 28... a6 {[%clk 0:02:17.5]} 29. Nc2
{[%clk 0:01:10.6]} 29... h6 {[%clk 0:02:08.3]} 30. Ra1 {[%clk 0:01:00.3]} 30...
Rab8 {[%clk 0:01:58.5]} 31. Rxd8 {[%clk 0:00:59.3]} 31... Rxd8 {[%clk
0:01:48.4]} 32. a4 {[%clk 0:00:59.9]} 32... Kd6 {[%clk 0:01:44.1]} 33. axb5
{[%clk 0:00:58.6]} 33... axb5 {[%clk 0:01:46]} 34. Rd1+ {[%clk 0:00:56]} 34...
Kc5 {[%clk 0:01:46.9]} 35. Rxd8 {[%clk 0:00:56.4]} 35... Nxd8 {[%clk 0:01:48.8]}
36. Nb4 {[%clk 0:00:57.5]} 36... Nc6 {[%clk 0:01:31.4]} 37. Nd5 {[%clk
0:00:57.1]} 37... Kd6 {[%clk 0:01:31.7]} 38. Kd2 {[%clk 0:00:50.3]} 38... Ne7
{[%clk 0:01:31.9]} 39. Nb4 {[%clk 0:00:33.5]} 39... Nc8 {[%clk 0:01:32.1]} 40.
Kc2 {[%clk 0:00:33.9]} 40... Nb6 {[%clk 0:01:32.9]} 41. Kb1 {[%clk 0:00:34.2]}
41... Na4 {[%clk 0:01:30]} 42. Nd5 {[%clk 0:00:33]} 42... Nc5 {[%clk 0:01:29.3]}
43. Kc2 {[%clk 0:00:32.5]} 43... Nd3 {[%clk 0:01:29.7]} 44. Kd2 {[%clk
0:00:27.3]} 44... Nxb2 {[%clk 0:01:30.1]} 45. Nf6 {[%clk 0:00:28.8]} 45... Ke6
{[%clk 0:01:22.2]} 46. Ng8 {[%clk 0:00:28.7]} 46... h5 {[%clk 0:01:22.3]} 47. g5
{[%clk 0:00:29.1]} 47... Nd3 {[%clk 0:01:17.5]} 48. Nf6 {[%clk 0:00:30.6]} 48...
b4 {[%clk 0:01:06.4]} 49. cxb4 {[%clk 0:00:29.7]} 49... Nxb4 {[%clk 0:01:08.3]}
50. Kc3 {[%clk 0:00:30.7]} 50... Nd3 {[%clk 0:01:09.1]} 51. Kd2 {[%clk 0:00:31]}
51... Nf2 {[%clk 0:01:07.5]} 52. Nd5 {[%clk 0:00:26.7]} 52... Kd6 {[%clk
0:01:02.7]} 53. Ke2 {[%clk 0:00:21.1]} 53... Nd3 {[%clk 0:01:02.6]} 54. Kd2
{[%clk 0:00:22.3]} 54... Nf2 {[%clk 0:00:51.4]} 55. Ke2 {[%clk 0:00:23.2]} 55...
Nh3 {[%clk 0:00:50.1]} 56. Kd2 {[%clk 0:00:23.4]} 56... Ng1 {[%clk 0:00:50.2]}
57. Kc3 {[%clk 0:00:22.8]} 57... Nxf3 {[%clk 0:00:51]} 58. Kxc4 {[%clk
0:00:24.7]} 58... Nxh4 {[%clk 0:00:52]} 59. Kd3 {[%clk 0:00:24.6]} 59... Nf3
{[%clk 0:00:52.7]} 0-1

[Event "*** Titled Tuesday 3|2 Blitz"]
[Site "Chess.com"]
[Date "2016.06.07"]
[Round "8"]
[White "Bentery"]
[Black "GMHess"]
[Result "1/2-1/2"]
[WhiteElo "2439"]
[BlackElo "2559"]
[TimeControl "180+2"]
[EndTime "12:40:23 PDT"]
[Termination "Game drawn - insufficient material"]

1. Nf3 {[%clk 0:03:01]} 1... g6 {[%clk 0:03:00.1]} 2. e4 {[%clk 0:03:01.9]} 2...
Bg7 {[%clk 0:03:01.7]} 3. d4 {[%clk 0:03:03.3]} 3... d6 {[%clk 0:03:02.7]} 4. c3
{[%clk 0:03:04.3]} 4... e5 {[%clk 0:03:00]} 5. dxe5 {[%clk 0:03:05.1]} 5... dxe5
{[%clk 0:03:01.9]} 6. Qxd8+ {[%clk 0:03:05.4]} 6... Kxd8 {[%clk 0:03:03.8]} 7.
Ng5 {[%clk 0:02:31.6]} 7... Nh6 {[%clk 0:02:54.1]} 8. Bc4 {[%clk 0:02:31.3]}
8... Ke7 {[%clk 0:02:54.8]} 9. b3 {[%clk 0:02:32]} 9... c5 {[%clk 0:02:32.9]}
10. a4 {[%clk 0:02:30.5]} 10... f6 {[%clk 0:02:31.9]} 11. Nf3 {[%clk 0:02:31.5]}
11... Nf7 {[%clk 0:02:27.5]} 12. Be3 {[%clk 0:02:31.9]} 12... Nd7 {[%clk
0:02:25.3]} 13. a5 {[%clk 0:02:30.4]} 13... Nd6 {[%clk 0:02:13.1]} 14. Bd5
{[%clk 0:02:31]} 14... Rb8 {[%clk 0:02:13.4]} 15. Nfd2 {[%clk 0:02:28.7]} 15...
h5 {[%clk 0:01:59.7]} 16. Na3 {[%clk 0:02:19.8]} 16... Bh6 {[%clk 0:02:00.1]}
17. Bxh6 {[%clk 0:02:13.8]} 17... Rxh6 {[%clk 0:02:02]} 18. O-O {[%clk
0:02:10.7]} 18... Nf8 {[%clk 0:01:54.3]} 19. Ndc4 {[%clk 0:02:02.5]} 19... Ne8
{[%clk 0:01:28.5]} 20. f4 {[%clk 0:01:46.5]} 20... exf4 {[%clk 0:01:24.9]} 21.
Rxf4 {[%clk 0:01:48.4]} 21... Nc7 {[%clk 0:01:13.7]} 22. Raf1 {[%clk 0:01:45.2]}
22... g5 {[%clk 0:01:14.9]} 23. R4f2 {[%clk 0:01:42.8]} 23... f5 {[%clk
0:01:03.1]} 24. Ne3 {[%clk 0:01:32.7]} 24... f4 {[%clk 0:01:03]} 25. Bc4 {[%clk
0:01:33.2]} 25... b5 {[%clk 0:00:53.6]} 26. axb6 {[%clk 0:01:32.9]} 26... axb6
{[%clk 0:00:55.3]} 27. Nd5+ {[%clk 0:01:28.7]} 27... Nxd5 {[%clk 0:00:55.4]} 28.
exd5 {[%clk 0:01:22.9]} 28... Bd7 {[%clk 0:00:46]} 29. Bb5 {[%clk 0:01:19.5]}
29... Bxb5 {[%clk 0:00:36.2]} 30. Nxb5 {[%clk 0:01:18.7]} 30... Kd7 {[%clk
0:00:38.1]} 31. Re1 {[%clk 0:01:18.3]} 31... Rf6 {[%clk 0:00:20.6]} 32. Re5
{[%clk 0:01:14.4]} 32... g4 {[%clk 0:00:13.5]} 33. Rxh5 {[%clk 0:01:13.4]} 33...
Re8 {[%clk 0:00:14.1]} 34. Rg5 {[%clk 0:01:06.1]} 34... g3 {[%clk 0:00:09]} 35.
hxg3 {[%clk 0:01:06.1]} 35... Re1+ {[%clk 0:00:10.2]} 36. Rf1 {[%clk 0:01:07.2]}
36... Rxf1+ {[%clk 0:00:11.8]} 37. Kxf1 {[%clk 0:01:08.5]} 37... fxg3+ {[%clk
0:00:13.7]} 38. Kg1 {[%clk 0:01:09.7]} 38... Ng6 {[%clk 0:00:14]} 39. Rxg3
{[%clk 0:01:09.9]} 39... Nf4 {[%clk 0:00:15.7]} 40. Rg7+ {[%clk 0:01:08]} 40...
Kd8 {[%clk 0:00:16.6]} 41. g3 {[%clk 0:00:58.2]} 41... Nxd5 {[%clk 0:00:16.7]}
42. c4 {[%clk 0:00:59.2]} 42... Ne3 {[%clk 0:00:14.9]} 43. Nc3 {[%clk
0:00:56.7]} 43... Rf1+ {[%clk 0:00:13.6]} 44. Kh2 {[%clk 0:00:57.7]} 44... Rf3
{[%clk 0:00:15.3]} 45. Ne4 {[%clk 0:00:54.3]} 45... Nc2 {[%clk 0:00:07.9]} 46.
Rb7 {[%clk 0:00:46.6]} 46... Re3 {[%clk 0:00:03.9]} 47. Nf6 {[%clk 0:00:39.4]}
47... Rxb3 {[%clk 0:00:05]} 48. Nd5 {[%clk 0:00:40.5]} 48... Na3 {[%clk
0:00:05]} 49. Rxb6 {[%clk 0:00:40.2]} 49... Rxb6 {[%clk 0:00:06]} 50. Nxb6
{[%clk 0:00:41.1]} 50... Kc7 {[%clk 0:00:07.9]} 51. Nd5+ {[%clk 0:00:42.5]}
51... Kd6 {[%clk 0:00:09.8]} 52. Ne3 {[%clk 0:00:44.4]} 52... Ke5 {[%clk
0:00:11.3]} 53. Kg2 {[%clk 0:00:42.2]} 53... Kd4 {[%clk 0:00:11.5]} 54. g4
{[%clk 0:00:40.3]} 54... Nxc4 {[%clk 0:00:08.4]} 55. Nxc4 {[%clk 0:00:19.2]}
55... Kxc4 {[%clk 0:00:10.3]} 56. Kf3 {[%clk 0:00:19.1]} 56... Kd5 {[%clk
0:00:12]} 57. Ke3 {[%clk 0:00:20.6]} 57... Ke5 {[%clk 0:00:13.2]} 58. Kd3 {[%clk
0:00:21.9]} 58... Kf4 {[%clk 0:00:14.3]} 59. Kc4 {[%clk 0:00:23.5]} 59... Kg5
{[%clk 0:00:16]} 60. Kxc5 {[%clk 0:00:25]} 60... Kxg4 {[%clk 0:00:17.9]} 1/2-1/2

[Event "*** Titled Tuesday 3|2 Blitz"]
[Site "Chess.com"]
[Date "2016.06.07"]
[Round "8"]
[White "silverback96"]
[Black "playerzr"]
[Result "0-1"]
[WhiteElo "2033"]
[BlackElo "2038"]
[TimeControl "180+2"]
[EndTime "12:40:43 PDT"]
[Termination "playerzr won by checkmate"]

1. Nf3 {[%clk 0:03:01.9]} 1... Nf6 {[%clk 0:03:00]} 2. g3 {[%clk 0:03:03.8]}
2... g6 {[%clk 0:03:00.8]} 3. Bg2 {[%clk 0:03:05.7]} 3... Bg7 {[%clk 0:03:02]}
4. O-O {[%clk 0:03:07.6]} 4... O-O {[%clk 0:03:03]} 5. b3 {[%clk 0:03:09.5]}
5... d6 {[%clk 0:03:00.2]} 6. Bb2 {[%clk 0:03:10.8]} 6... e5 {[%clk 0:03:01.1]}
7. d4 {[%clk 0:03:11.6]} 7... e4 {[%clk 0:02:59.6]} 8. Nfd2 {[%clk 0:03:12.7]}
8... d5 {[%clk 0:02:58.4]} 9. c4 {[%clk 0:03:13.9]} 9... c6 {[%clk 0:02:59.1]}
10. cxd5 {[%clk 0:03:08.6]} 10... cxd5 {[%clk 0:02:57.8]} 11. Nc3 {[%clk
0:03:09.8]} 11... Nc6 {[%clk 0:02:46.9]} 12. Re1 {[%clk 0:03:07.9]} 12... e3
{[%clk 0:02:40.9]} 13. fxe3 {[%clk 0:03:07.7]} 13... Re8 {[%clk 0:02:25.3]} 14.
Nf1 {[%clk 0:03:07.8]} 14... h5 {[%clk 0:02:09.8]} 15. e4 {[%clk 0:02:50.4]}
15... Nxe4 {[%clk 0:01:55.1]} 16. Nxe4 {[%clk 0:02:47.2]} 16... dxe4 {[%clk
0:01:55.3]} 17. e3 {[%clk 0:02:47.3]} 17... Bg4 {[%clk 0:01:49.9]} 18. Qc2
{[%clk 0:02:48.5]} 18... Rc8 {[%clk 0:01:44.8]} 19. h3 {[%clk 0:02:44.5]} 19...
Nxd4 {[%clk 0:01:17.3]} 20. Qf2 {[%clk 0:02:41.3]} 20... Nf3+ {[%clk 0:01:16.8]}
21. Kh1 {[%clk 0:02:42.4]} 21... Nxe1 {[%clk 0:01:15.3]} 22. hxg4 {[%clk
0:02:43.1]} 22... Nxg2 {[%clk 0:01:15.5]} 23. Qxg2 {[%clk 0:02:44.3]} 23... hxg4
{[%clk 0:01:10.8]} 24. Nh2 {[%clk 0:02:44.6]} 24... Qd7 {[%clk 0:00:59.5]} 25.
Bxg7 {[%clk 0:02:36.4]} 25... Kxg7 {[%clk 0:01:00]} 26. Qb2+ {[%clk 0:02:38.3]}
26... f6 {[%clk 0:00:55.9]} 27. Rf1 {[%clk 0:02:38.1]} 27... Rc6 {[%clk
0:00:55.7]} 28. Qe2 {[%clk 0:02:33.1]} 28... f5 {[%clk 0:00:52.3]} 29. Rd1
{[%clk 0:02:33.9]} 29... Qe7 {[%clk 0:00:50.4]} 30. Qb2+ {[%clk 0:02:34.6]}
30... Kh7 {[%clk 0:00:49.6]} 31. Rd2 {[%clk 0:02:16.6]} 31... Rd8 {[%clk
0:00:48.6]} 32. Re2 {[%clk 0:02:13.8]} 32... Qg7 {[%clk 0:00:38.6]} 33. Qa3
{[%clk 0:02:05.4]} 33... a6 {[%clk 0:00:37.5]} 34. Nf1 {[%clk 0:02:05.1]} 34...
Kg8 {[%clk 0:00:31.4]} 35. Qb4 {[%clk 0:02:01.6]} 35... Qf7 {[%clk 0:00:22.3]}
36. Rh2 {[%clk 0:01:59.4]} 36... Rc1 {[%clk 0:00:19.2]} 37. Kg1 {[%clk
0:01:54.2]} 37... Rdd1 {[%clk 0:00:19.4]} 38. Rf2 {[%clk 0:01:55.7]} 38... Qh7
{[%clk 0:00:12.5]} 39. Qb6 {[%clk 0:01:55.3]} 39... Qf7 {[%clk 0:00:09.8]} 40.
Qb4 {[%clk 0:01:50.7]} 40... b5 {[%clk 0:00:09.9]} 41. Qa5 {[%clk 0:01:50.8]}
41... Qb7 {[%clk 0:00:08.6]} 42. Kg2 {[%clk 0:01:51.9]} 42... Qc6 {[%clk
0:00:08.1]} 43. Qb4 {[%clk 0:01:41.4]} 43... Rc2 {[%clk 0:00:08.6]} 44. Qe7
{[%clk 0:01:39.1]} 44... Rxf2+ {[%clk 0:00:08.3]} 45. Kxf2 {[%clk 0:01:41]}
45... Qc2+ {[%clk 0:00:08.6]} 46. Kg1 {[%clk 0:01:42.3]} 46... Rxf1+ {[%clk
0:00:09.1]} 47. Kxf1 {[%clk 0:01:44.2]} 47... Qd1+ {[%clk 0:00:08.9]} 48. Kg2
{[%clk 0:01:32.1]} 48... Qe2+ {[%clk 0:00:09.8]} 49. Kh1 {[%clk 0:01:30.6]}
49... Qf3+ {[%clk 0:00:10.3]} 50. Kh2 {[%clk 0:01:31.9]} 50... Qf2+ {[%clk
0:00:10.6]} 51. Kh1 {[%clk 0:01:33.3]} 51... Qf1+ {[%clk 0:00:11.7]} 52. Kh2
{[%clk 0:01:35]} 52... Qh3+ {[%clk 0:00:12.4]} 53. Kg1 {[%clk 0:01:36.9]} 53...
Qxg3+ {[%clk 0:00:13.4]} 54. Kf1 {[%clk 0:01:38.8]} 54... Qf3+ {[%clk
0:00:14.6]} 55. Kg1 {[%clk 0:01:39.3]} 55... Qxe3+ {[%clk 0:00:15.4]} 56. Kg2
{[%clk 0:01:41]} 56... Qd2+ {[%clk 0:00:15.5]} 57. Kg3 {[%clk 0:01:39.6]} 57...
Qd5 {[%clk 0:00:15.8]} 58. Kf4 {[%clk 0:01:32.7]} 58... e3 {[%clk 0:00:16.1]}
59. Kg5 {[%clk 0:01:26.6]} 59... Qf7 {[%clk 0:00:16.5]} 60. Qd8+ {[%clk
0:01:05.1]} 60... Kh7 {[%clk 0:00:15.4]} 61. Qd3 {[%clk 0:01:01.4]} 61... Qe7+
{[%clk 0:00:15.1]} 62. Kf4 {[%clk 0:01:02.8]} 62... e2 {[%clk 0:00:15]} 63. b4
{[%clk 0:00:54.5]} 63... e1=Q {[%clk 0:00:13.6]} 64. a4 {[%clk 0:00:56.4]} 64...
Q1e5# {[%clk 0:00:08.7]} 0-1

[Event "*** Titled Tuesday 3|2 Blitz"]
[Site "Chess.com"]
[Date "2016.06.07"]
[Round "8"]
[White "bugsbunny444"]
[Black "Journey_to_GrandMaster_YT"]
[Result "0-1"]
[WhiteElo "2367"]
[BlackElo "2365"]
[TimeControl "180+2"]
[EndTime "12:41:03 PDT"]
[Termination "Journey_to_GrandMaster_YT won by resignation"]

1. Nf3 {[%clk 0:03:01.8]} 1... d6 {[%clk 0:02:58.6]} 2. d4 {[%clk 0:03:02.1]}
2... Nd7 {[%clk 0:02:56.9]} 3. e4 {[%clk 0:03:00.2]} 3... e5 {[%clk 0:02:57.3]}
4. Nc3 {[%clk 0:02:58.1]} 4... Ngf6 {[%clk 0:02:58.1]} 5. g3 {[%clk 0:02:59.1]}
5... Be7 {[%clk 0:02:57.3]} 6. Bg2 {[%clk 0:03:00.2]} 6... O-O {[%clk 0:02:58]}
7. O-O {[%clk 0:03:01.7]} 7... c6 {[%clk 0:02:59.1]} 8. a4 {[%clk 0:03:03.1]}
8... a5 {[%clk 0:02:59.4]} 9. h3 {[%clk 0:02:59]} 9... Re8 {[%clk 0:02:39.9]}
10. Re1 {[%clk 0:02:59.7]} 10... Qc7 {[%clk 0:02:40.4]} 11. Be3 {[%clk
0:02:58.3]} 11... Bf8 {[%clk 0:02:35.6]} 12. Nd2 {[%clk 0:02:56.5]} 12... g6
{[%clk 0:02:24.9]} 13. Nc4 {[%clk 0:02:54.6]} 13... Bg7 {[%clk 0:02:19.4]} 14.
dxe5 {[%clk 0:02:50.7]} 14... dxe5 {[%clk 0:02:19.8]} 15. Qd6 {[%clk 0:02:39.7]}
15... Qd8 {[%clk 0:01:54.9]} 16. Rad1 {[%clk 0:01:57.8]} 16... Bf8 {[%clk
0:01:53.5]} 17. Qd2 {[%clk 0:01:48.5]} 17... Qc7 {[%clk 0:01:45.1]} 18. Bg5
{[%clk 0:01:21.5]} 18... Nh5 {[%clk 0:01:27]} 19. Nd6 {[%clk 0:01:06.7]} 19...
Bxd6 {[%clk 0:01:21.6]} 20. Qxd6 {[%clk 0:01:08.6]} 20... Qxd6 {[%clk
0:01:22.7]} 21. Rxd6 {[%clk 0:01:09.3]} 21... Ng7 {[%clk 0:01:06.3]} 22. Be3
{[%clk 0:01:04.8]} 22... Ne6 {[%clk 0:01:06]} 23. Red1 {[%clk 0:00:59.2]} 23...
Ndc5 {[%clk 0:01:05.5]} 24. h4 {[%clk 0:00:50.1]} 24... h5 {[%clk 0:01:00.4]}
25. Bh3 {[%clk 0:00:48.2]} 25... Na6 {[%clk 0:00:44]} 26. Bb6 {[%clk 0:00:30.3]}
26... Nb4 {[%clk 0:00:35.9]} 27. R1d2 {[%clk 0:00:16.1]} 27... Nd4 {[%clk
0:00:31]} 28. Bxc8 {[%clk 0:00:12.9]} 28... Nf3+ {[%clk 0:00:29.6]} 29. Kg2
{[%clk 0:00:14]} 29... Nxd2 {[%clk 0:00:29.3]} 30. Bd7 {[%clk 0:00:15.3]} 30...
Nc4 {[%clk 0:00:26.3]} 31. Bxe8 {[%clk 0:00:07.4]} 31... Nxd6 {[%clk 0:00:26.7]}
32. Bd7 {[%clk 0:00:07.6]} 32... Nc4 {[%clk 0:00:21.1]} 33. Bc7 {[%clk
0:00:08.4]} 33... Nxc2 {[%clk 0:00:19.6]} 34. b3 {[%clk 0:00:08.6]} 34... Nd2
{[%clk 0:00:19.7]} 35. Bxe5 {[%clk 0:00:08.9]} 35... Nxb3 {[%clk 0:00:20.2]} 36.
Ne2 {[%clk 0:00:06.3]} 36... Nc5 {[%clk 0:00:18.8]} 37. Bh3 {[%clk 0:00:06.2]}
37... Nxa4 {[%clk 0:00:15.7]} 38. Bf6 {[%clk 0:00:07.4]} 38... Nc5 {[%clk
0:00:15.8]} 39. e5 {[%clk 0:00:08]} 39... a4 {[%clk 0:00:16.6]} 40. Be7 {[%clk
0:00:07.7]} 40... b6 {[%clk 0:00:15.4]} 41. Nd4 {[%clk 0:00:05.6]} 41... a3
{[%clk 0:00:15.8]} 42. Nxc2 {[%clk 0:00:06.4]} 42... a2 {[%clk 0:00:14.7]} 43.
Na1 {[%clk 0:00:04.3]} 43... Nd3 {[%clk 0:00:10.1]} 44. Bd7 {[%clk 0:00:04.1]}
44... Nxe5 {[%clk 0:00:10.8]} 45. Bh3 {[%clk 0:00:03.7]} 45... c5 {[%clk
0:00:10.3]} 46. Bf6 {[%clk 0:00:04.9]} 46... Nd3 {[%clk 0:00:09.4]} 47. Kf1
{[%clk 0:00:06]} 47... b5 {[%clk 0:00:10]} 48. Bg2 {[%clk 0:00:07.2]} 48... Ra6
{[%clk 0:00:10.2]} 49. Bg5 {[%clk 0:00:06.5]} 49... b4 {[%clk 0:00:11.3]} 50.
Bd5 {[%clk 0:00:07.3]} 50... Ra3 {[%clk 0:00:08.6]} 51. Be3 {[%clk 0:00:07.6]}
51... Rc3 {[%clk 0:00:07.1]} 52. Bxa2 {[%clk 0:00:05.3]} 52... Ra3 {[%clk
0:00:07.1]} 53. Bc4 {[%clk 0:00:05.4]} 53... Rxa1+ {[%clk 0:00:08.1]} 54. Kg2
{[%clk 0:00:06.2]} 54... Ne5 {[%clk 0:00:09.2]} 55. Bd5 {[%clk 0:00:06.7]} 55...
c4 {[%clk 0:00:09.7]} 56. Bd4 {[%clk 0:00:07.1]} 56... Rd1 {[%clk 0:00:09.5]}
57. Bxe5 {[%clk 0:00:03.4]} 57... Rxd5 {[%clk 0:00:10.3]} 58. Bf6 {[%clk
0:00:05.3]} 58... c3 {[%clk 0:00:10.8]} 59. Kf3 {[%clk 0:00:06.2]} 0-1

[Event "*** Titled Tuesday 3|2 Blitz"]
[Site "Chess.com"]
[Date "2016.06.07"]
[Round "8"]
[White "NewBornNow"]
[Black "Bigfish1995"]
[Result "0-1"]
[WhiteElo "2567"]
[BlackElo "2620"]
[TimeControl "180+2"]
[EndTime "12:41:54 PDT"]
[Termination "Bigfish1995 won by resignation"]

1. e4 {[%clk 0:03:01.9]} 1... c6 {[%clk 0:02:59]} 2. d4 {[%clk 0:03:02.1]} 2...
d5 {[%clk 0:03:00.6]} 3. e5 {[%clk 0:03:03.1]} 3... Bf5 {[%clk 0:03:01.6]} 4.
Nf3 {[%clk 0:03:03.3]} 4... e6 {[%clk 0:03:02.7]} 5. Be2 {[%clk 0:03:04.4]} 5...
h6 {[%clk 0:03:01.5]} 6. O-O {[%clk 0:03:05.1]} 6... Nd7 {[%clk 0:03:03.1]} 7.
Nbd2 {[%clk 0:03:04.7]} 7... Ne7 {[%clk 0:03:04.7]} 8. Nb3 {[%clk 0:03:05.1]}
8... Bh7 {[%clk 0:03:05.3]} 9. a4 {[%clk 0:03:04]} 9... a5 {[%clk 0:03:05.2]}
10. Bd2 {[%clk 0:03:03.6]} 10... Ng6 {[%clk 0:03:06]} 11. Qe1 {[%clk 0:02:55.7]}
11... b6 {[%clk 0:03:06]} 12. c4 {[%clk 0:02:56.6]} 12... dxc4 {[%clk
0:03:05.1]} 13. Bxc4 {[%clk 0:02:56.3]} 13... Be7 {[%clk 0:03:06.7]} 14. Qe2
{[%clk 0:02:50.2]} 14... O-O {[%clk 0:03:06.3]} 15. Bd3 {[%clk 0:02:50.9]} 15...
Rc8 {[%clk 0:02:46.2]} 16. Rfd1 {[%clk 0:02:46.4]} 16... Re8 {[%clk 0:02:40.7]}
17. Rac1 {[%clk 0:02:45.6]} 17... Bf8 {[%clk 0:02:39.8]} 18. Be4 {[%clk
0:02:43.9]} 18... Ne7 {[%clk 0:02:40.7]} 19. Bc3 {[%clk 0:02:30]} 19... Nd5
{[%clk 0:02:38.7]} 20. Nbd2 {[%clk 0:02:29]} 20... Bxe4 {[%clk 0:02:23]} 21.
Nxe4 {[%clk 0:02:28.8]} 21... Qc7 {[%clk 0:02:19.4]} 22. Nfd2 {[%clk 0:02:21.1]}
22... Red8 {[%clk 0:01:52.7]} 23. Nc4 {[%clk 0:02:20.1]} 23... Rb8 {[%clk
0:01:53.1]} 24. Qf3 {[%clk 0:02:16.2]} 24... f5 {[%clk 0:01:45.5]} 25. exf6
{[%clk 0:02:05.3]} 25... N7xf6 {[%clk 0:01:45.5]} 26. Nxf6+ {[%clk 0:01:50.4]}
26... Nxf6 {[%clk 0:01:43.4]} 27. d5 {[%clk 0:01:49.6]} 27... cxd5 {[%clk
0:01:16]} 28. Be5 {[%clk 0:01:46.2]} 28... Qb7 {[%clk 0:01:17.4]} 29. Bxb8
{[%clk 0:01:44]} 29... Qxb8 {[%clk 0:01:18]} 30. Na3 {[%clk 0:01:33.5]} 30...
Bc5 {[%clk 0:01:18.2]} 31. Re1 {[%clk 0:01:24.2]} 31... Rf8 {[%clk 0:01:14.7]}
32. Qh3 {[%clk 0:00:58]} 32... Ne4 {[%clk 0:01:10.2]} 33. Qxe6+ {[%clk
0:00:57.5]} 33... Kh8 {[%clk 0:01:10.9]} 34. Rxe4 {[%clk 0:00:58]} 34... Bxf2+
{[%clk 0:01:06.1]} 35. Kh1 {[%clk 0:00:57.1]} 35... dxe4 {[%clk 0:01:06.9]} 36.
Qxe4 {[%clk 0:00:57.5]} 36... Bc5 {[%clk 0:01:05.2]} 37. Nc4 {[%clk 0:00:54.3]}
37... Rf4 {[%clk 0:01:06]} 38. Qd3 {[%clk 0:00:43.3]} 38... Rd4 {[%clk 0:01:07]}
39. Qe2 {[%clk 0:00:42.6]} 39... Qf4 {[%clk 0:00:47.5]} 40. Rf1 {[%clk
0:00:28.9]} 40... Qe4 {[%clk 0:00:46.3]} 41. Qxe4 {[%clk 0:00:24.3]} 41... Rxe4
{[%clk 0:00:47.5]} 42. b3 {[%clk 0:00:25.2]} 42... Rd4 {[%clk 0:00:46.4]} 43. g3
{[%clk 0:00:19.7]} 43... Rd3 {[%clk 0:00:45.9]} 44. Rb1 {[%clk 0:00:20.4]} 44...
g5 {[%clk 0:00:42]} 45. Kg2 {[%clk 0:00:21.1]} 45... Kg7 {[%clk 0:00:43.6]} 46.
Ne5 {[%clk 0:00:20.4]} 46... Rc3 {[%clk 0:00:42]} 47. Nc4 {[%clk 0:00:20.7]}
47... Kf6 {[%clk 0:00:42.5]} 48. h3 {[%clk 0:00:21.8]} 48... Kf5 {[%clk
0:00:39.6]} 49. Rf1+ {[%clk 0:00:21.5]} 49... Ke4 {[%clk 0:00:38.5]} 50. Re1+
{[%clk 0:00:22.6]} 50... Kd3 {[%clk 0:00:39.4]} 51. Re6 {[%clk 0:00:23.2]} 51...
Rxb3 {[%clk 0:00:39.7]} 52. Ne5+ {[%clk 0:00:24.3]} 52... Kd4 {[%clk 0:00:40.7]}
53. Nd7 {[%clk 0:00:25.1]} 53... Rb4 {[%clk 0:00:36.7]} 54. Rxh6 {[%clk
0:00:25.7]} 54... Rxa4 {[%clk 0:00:37.9]} 55. Nxb6 {[%clk 0:00:25.7]} 55... Ra3
{[%clk 0:00:31.3]} 56. h4 {[%clk 0:00:23.4]} 56... g4 {[%clk 0:00:29.6]} 57. h5
{[%clk 0:00:24]} 57... Ra2+ {[%clk 0:00:27.4]} 58. Kf1 {[%clk 0:00:24]} 58...
Ke3 {[%clk 0:00:28.5]} 59. Rf6 {[%clk 0:00:20.4]} 59... Bd4 {[%clk 0:00:25.1]}
60. Re6+ {[%clk 0:00:18]} 60... Kf3 {[%clk 0:00:25.6]} 61. Ke1 {[%clk
0:00:18.3]} 61... Kxg3 {[%clk 0:00:22.8]} 62. h6 {[%clk 0:00:18.6]} 62... Kf3
{[%clk 0:00:20.8]} 63. Nc4 {[%clk 0:00:18.3]} 63... g3 {[%clk 0:00:22]} 64. Nd2+
{[%clk 0:00:19.1]} 64... Rxd2 {[%clk 0:00:17.9]} 65. Kxd2 {[%clk 0:00:19.7]}
65... g2 {[%clk 0:00:19.5]} 66. Rg6 {[%clk 0:00:20.4]} 66... Be3+ {[%clk
0:00:14.6]} 67. Kc3 {[%clk 0:00:18.6]} 67... Bxh6 {[%clk 0:00:14.7]} 68. Kc4
{[%clk 0:00:18.1]} 68... Bd2 {[%clk 0:00:14.9]} 69. Kb5 {[%clk 0:00:17.6]} 69...
Be1 {[%clk 0:00:15.1]} 70. Rf6+ {[%clk 0:00:18]} 70... Kg4 {[%clk 0:00:16]} 71.
Rg6+ {[%clk 0:00:19.1]} 71... Kh3 {[%clk 0:00:17.3]} 72. Rh6+ {[%clk 0:00:20.1]}
72... Bh4 {[%clk 0:00:18.5]} 73. Rg6 {[%clk 0:00:21]} 73... Bg3 {[%clk
0:00:19.8]} 74. Rh6+ {[%clk 0:00:21.8]} 74... Kg4 {[%clk 0:00:21.3]} 75. Rg6+
{[%clk 0:00:23.2]} 75... Kf4 {[%clk 0:00:22.7]} 76. Rf6+ {[%clk 0:00:24.5]}
76... Ke5 {[%clk 0:00:23.9]} 0-1